bitfinex/quotes_SOLUSD_20241231
["timestamp","ask_amount","ask_price","bid_price","bid_amount"]
[1735609953967,0.98548823,190.27,190.19,16.63334189]
[1735609955072,6.5426,190.28,190.22,16.63334189]
[1735609955246,6.5426,190.28,190.23,16.63334189]
[1735609955449,6.5426,190.28,190.22,16.63334189]
[1735609956970,1.4863,190.33,190.25,16.63334189]
[1735609957148,6.4471,190.34,190.28,16.63334189]
[1735609957770,6.4471,190.34,190.27,16.63334189]
[1735609957972,6.4471,190.34,190.26,16.63334189]
[1735609961473,6.4471,190.34,190.25,16.63334189]
[1735609961651,0.98517427,190.33,190.24,16.63334189]
[1735609962851,0.98517427,190.33,190.25,16.63334189]
[1735609963371,6.4471,190.34,190.25,16.63334189]
[1735609963574,6.4471,190.34,190.26,16.63334189]
[1735609964271,0.98522256,190.33,190.25,16.63334189]
[1735609964775,0.98522256,190.33,190.24,16.63334189]
[1735609964960,0.98522256,190.33,190.25,16.63334189]
[1735609966481,0.98522256,190.33,190.24,16.63334189]
[1735609966656,20.0,190.31,190.23,16.63334189]
[1735609967178,0.98537805,190.3,190.22,16.63334189]
[1735609967681,0.98537805,190.3,190.23,16.63334189]
[1735609969376,1.4863,190.31,190.25,16.63334189]
[1735609969566,1.4863,190.31,190.24,16.63334189]
[1735609970383,1.4863,190.31,190.23,16.63334189]
[1735609974288,1.4863,190.31,190.23,10.64296559]
[1735609976481,1.4863,190.31,190.18,21.6503]
[1735609976683,6.2746,190.29,190.12,1.5704]
[1735609976905,0.9856407,190.28,190.17,10.64296559]
[1735609977561,0.9856407,190.28,190.18,10.64296559]
[1735609978163,0.9856407,190.28,190.19,10.64296559]
[1735609978879,0.9856407,190.28,190.18,10.64296559]
[1735609979885,0.9856407,190.28,190.13,43.776884]
[1735609980063,0.9856407,190.28,190.18,10.64296559]
[1735609981689,20.0,190.26,190.18,10.64296559]
[1735609981877,0.98567696,190.25,190.16,10.64296559]
[1735609982067,0.98567696,190.25,190.15,10.64296559]
[1735609985193,0.98567696,190.25,190.14,10.64296559]
[1735609985371,21.4863,190.24,190.14,10.64296559]
[1735609985567,6.2834,190.22,190.07,1.5461]
[1735609985767,0.98593608,190.21,190.11,10.64296559]
[1735609987568,0.98593608,190.21,190.12,10.64296559]
[1735609989097,0.98593608,190.21,190.1,10.64296559]
[1735609989994,20.0,190.19,190.1,10.64296559]
[1735609990184,0.98607218,190.18,190.1,10.64296559]
[1735609990678,0.98607218,190.18,190.09,10.64296559]
[1735609990870,0.98607218,190.18,190.08,10.64296559]
[1735609991387,0.98607218,190.18,190.09,10.64296559]
[1735609991582,0.98607218,190.18,190.1,10.64296559]
[1735609991767,20.0,190.19,190.1,10.64296559]
[1735609991963,20.0,190.19,190.11,10.64296559]
[1735609992590,20.0,190.19,190.1,10.64296559]
[1735609995689,0.98594974,190.18,190.1,10.64296559]
[1735609995986,0.98594974,190.18,190.09,10.64296559]
[1735609996588,8.9119,190.22,190.09,10.64296559]
[1735609996785,0.9860437,190.21,190.09,10.64296559]
[1735609997094,0.9860437,190.21,190.1,10.64296559]
[1735609999410,20.0,190.19,190.1,10.64296559]
[1735609999596,0.986081,190.18,190.09,10.64296559]
[1735610000171,0.986081,190.18,190.08,10.64296559]
[1735610000367,1.4863,190.17,190.08,10.64296559]
[1735610000572,0.98614003,190.16,190.08,10.64296559]
[1735610000775,6.3901,190.15,190.04,10.64296559]
[1735610001096,0.98632392,190.14,190.04,10.64296559]
[1735610002969,6.3901,190.15,190.07,10.64296559]
[1735610003309,6.3901,190.15,190.08,10.64296559]
[1735610003782,6.3901,190.15,190.07,10.64296559]
[1735610004298,0.98621032,190.14,190.06,10.64296559]
[1735610004497,6.3901,190.15,190.06,10.64296559]
[1735610004680,0.98621516,190.14,190.06,10.64296559]
[1735610007298,7.37631553,190.15,190.07,10.64296559]
[1735610007685,7.37631553,190.15,190.08,10.64296559]
[1735610007896,6.3901,190.15,190.08,10.64296559]
[1735610008100,6.3901,190.15,190.09,10.64296559]
[1735610009092,6.3901,190.15,190.1,10.64296559]
[1735610009805,6.3901,190.15,190.09,10.64296559]
[1735610013015,6.3901,190.15,190.07,20.78879258]
[1735610013316,6.3901,190.15,190.09,10.64296559]
[1735610014443,0.98608336,190.14,190.05,11.43183228]
[1735610014589,0.98608336,190.14,190.04,10.64296559]
[1735610015312,20.0,190.12,190.03,10.64296559]
[1735610015504,0.98641413,190.11,190.03,10.64296559]
[1735610016304,0.98641413,190.11,190.0,0.78913511]
[1735610016611,0.98641413,190.11,190.01,10.64296559]
[1735610017505,0.98641413,190.11,190.02,10.64296559]
[1735610017686,0.98641413,190.11,190.01,10.64296559]
[1735610020410,7.6222,190.1,190.01,10.64296559]
[1735610020606,0.98655114,190.09,190.0,10.64296559]
[1735610023228,0.98655114,190.09,190.01,10.64296559]
[1735610024529,7.6222,190.1,190.03,10.64296559]
[1735610024710,6.1359,190.1,190.06,10.64296559]
[1735610025027,7.6222,190.14,190.08,10.64296559]
[1735610031034,7.6222,190.14,190.07,10.64296559]
[1735610031715,0.98617607,190.13,190.05,10.64296559]
[1735610032932,7.6222,190.14,190.06,10.64296559]
[1735610036534,7.6222,190.14,190.05,10.64296559]
[1735610038017,0.98622724,190.13,190.05,10.64296559]
[1735610038637,7.6222,190.14,190.05,10.64296559]
[1735610040328,0.98623576,190.13,190.05,10.64296559]
[1735610040507,0.98623576,190.13,190.04,11.43186752]
[1735610040838,20.0,190.11,190.01,0.7890152]
[1735610041029,0.98650293,190.1,190.0,10.64296559]
[1735610041231,0.98650293,190.1,189.99,10.64296559]
[1735610042115,20.0,190.09,189.98,11.43216793]
[1735610042315,0.9865899,190.08,189.98,11.43216793]
[1735610042737,0.9865899,190.08,189.98,10.64296559]
[1735610042933,0.9865899,190.08,189.97,11.43228008]
[1735610043134,27.6844,190.07,189.95,10.64296559]
[1735610043309,0.98680865,190.06,189.95,10.64296559]
[1735610044138,0.98680865,190.06,189.94,10.64296559]
[1735610044547,0.98680865,190.06,189.95,10.64296559]
[1735610044713,28.67117168,190.07,189.97,10.64296559]
[1735610044919,27.6844,190.07,189.98,11.43222505]
[1735610045132,27.6844,190.07,189.99,10.64296559]
[1735610045639,27.6844,190.07,189.98,11.43222505]
[1735610047135,0.9865791,190.06,189.98,11.43222505]
[1735610047438,0.98664959,190.06,189.98,11.43222505]
[1735610047938,27.6844,190.07,189.98,11.43222505]
[1735610048835,27.6844,190.07,189.99,10.64296559]
[1735610049352,6.1981,190.07,190.02,10.64296559]
[1735610049542,1.4863,190.11,190.04,10.64296559]
[1735610049714,1.4863,190.11,190.03,0.78910654]
[1735610049715,6.4053,190.12,190.06,10.64296559]
[1735610052053,6.4053,190.12,190.07,11.43194993]
[1735610052344,7.8916,190.16,190.08,10.64296559]
[1735610069254,7.8916,190.16,190.09,10.64296559]
[1735610069465,6.4053,190.16,190.1,10.64296559]
[1735610072335,8.0559,190.21,190.11,0.78878894]
[1735610072541,8.0559,190.21,190.16,10.64296559]
[1735610072738,6.5696,190.21,190.16,10.64296559]
[1735610077146,6.5696,190.21,190.15,10.64296559]
[1735610077578,6.5696,190.21,190.13,11.43153861]
[1735610077745,6.5696,190.21,190.08,0.7887143]
[1735610077746,20.0,190.18,190.08,0.7887143]
[1735610077943,0.98607023,190.17,190.08,10.64296559]
[1735610078247,20.0,190.18,190.09,10.64296559]
[1735610078454,20.0,190.18,190.1,10.64296559]
[1735610079474,1.4863,190.19,190.11,11.43176631]
[1735610079943,0.9859114,190.2,190.01,180.11461647]
[1735610079944,6.626,190.17,190.01,2.07161647]
[1735610080148,6.626,190.15,189.95,8.24668434]
[1735610080357,0.98661733,190.14,189.95,8.24668434]
[1735610080565,20.0,190.05,189.95,8.24668434]
[1735610080764,0.98688921,190.04,189.95,8.24668434]
[1735610081264,0.98688921,190.04,189.93,10.64296559]
[1735610081479,0.98688921,190.04,189.91,1.5206]
[1735610081480,0.98688921,190.04,189.92,10.64296559]
[1735610081649,0.98688921,190.04,189.93,10.64296559]
[1735610083874,0.98688921,190.04,189.95,10.64296559]
[1735610085656,0.98688921,190.04,189.94,10.64296559]
[1735610085853,0.98688921,190.04,189.92,23.776884]
[1735610086059,0.98688921,190.04,189.92,10.64296559]
[1735610087085,0.98688921,190.04,189.93,10.64296559]
[1735610087572,0.98688921,190.04,189.92,10.64296559]
[1735610090171,0.98688917,190.07,189.97,34.41984959]
[1735610090353,6.626,190.08,189.98,10.64296559]
[1735610091172,6.626,190.08,189.97,10.64296559]
[1735610091387,20.0,190.03,189.92,10.64296559]
[1735610091554,0.98690531,190.02,189.91,1.5206]
[1735610092453,0.98690531,190.02,189.91,12.16356559]
[1735610093378,20.0,190.03,189.92,10.64296559]
[1735610093865,0.98682212,190.02,189.91,12.16356559]
[1735610094259,0.98682212,190.02,189.91,16.53717766]
[1735610095186,0.98682212,190.02,189.91,1.5206]
[1735610095477,6.7524,190.01,189.89,15.01657766]
[1735610095678,20.0,189.98,189.88,15.01657766]
[1735610096176,20.0,189.98,189.87,23.776884]
[1735610096378,20.0,189.98,189.9,15.01657766]
[1735610097182,6.7524,190.01,189.9,15.01657766]
[1735610097384,0.98694755,190.0,189.9,15.01657766]
[1735610097587,0.98694755,190.0,189.89,15.01657766]
[1735610097759,20.0,189.98,189.89,15.01657766]
[1735610098764,6.0549,190.05,189.91,15.01657766]
[1735610098965,6.0549,190.05,189.96,15.01657766]
[1735610100470,6.0549,190.05,189.97,15.01657766]
[1735610101183,6.0549,190.05,189.96,15.01657766]
[1735610101365,6.0549,190.05,189.95,15.01657766]
[1735610101572,0.9867035,190.04,189.95,15.01657766]
[1735610101771,0.9867035,190.04,189.93,15.01657766]
[1735610102170,6.0549,190.05,189.96,15.01657766]
[1735610102363,6.0549,190.05,189.97,15.01657766]
[1735610102685,6.0549,190.05,189.96,15.01657766]
[1735610103172,0.98670104,190.04,189.94,15.01657766]
[1735610103374,20.0,190.02,189.94,15.01657766]
[1735610105886,0.9868245,190.01,189.92,15.01657766]
[1735610106086,0.6975,190.0,189.88,15.01657766]
[1735610106288,6.3558,189.98,189.87,15.01657766]
[1735610106594,0.98718758,189.97,189.87,15.01657766]
[1735610106776,0.98718758,189.97,189.87,38.79346166]
[1735610108468,0.98718758,189.97,189.88,15.01657766]
[1735610109291,0.98718758,189.97,189.87,38.79346166]
[1735610111200,20.0,189.95,189.87,15.01657766]
[1735610111379,20.0,189.95,189.85,15.01657766]
[1735610111380,0.98723996,189.94,189.85,15.01657766]
[1735610111587,0.9872499,189.93,189.84,15.01657766]
[1735610112791,0.98734335,189.94,189.84,15.01657766]
[1735610113174,6.3558,189.93,189.83,15.01657766]
[1735610113370,0.98743225,189.92,189.83,15.01657766]
[1735610113600,0.98743225,189.92,189.82,35.01657766]
[1735610113792,0.98743225,189.92,189.83,15.01657766]
[1735610115904,0.98743225,189.92,189.82,15.01657766]
[1735610116271,0.6975,189.91,189.8,15.01657766]
[1735610116508,20.98757132,189.9,189.79,15.01657766]
[1735610116683,20.98757132,189.9,189.78,35.01657766]
[1735610116878,20.98757132,189.9,189.79,15.01657766]
[1735610118200,20.98757132,189.9,189.78,15.01657766]
[1735610119279,6.2599,189.88,189.77,15.01657766]
[1735610119480,0.98778745,189.87,189.75,15.01657766]
[1735610120106,0.98778745,189.87,189.76,15.01657766]
[1735610120282,0.98778745,189.87,189.79,15.01657766]
[1735610121303,0.98778745,189.87,189.78,15.01657766]
[1735610123103,6.2599,189.88,189.82,15.01657766]
[1735610125900,6.2599,189.88,189.83,15.01657766]
[1735610126205,0.6975,189.91,189.86,15.01657766]
[1735610127110,0.6975,189.91,189.85,15.01657766]
[1735610127681,0.6975,189.91,189.86,15.01657766]
[1735610128205,0.6975,189.91,189.85,15.01657766]
[1735610129914,1.68479287,189.91,189.84,15.01657766]
[1735610130210,0.6975,189.91,189.85,15.01657766]
[1735610130509,0.6975,189.91,189.86,15.01657766]
[1735610131301,0.6975,189.91,189.85,15.01657766]
[1735610131807,0.6975,189.91,189.84,15.01657766]
[1735610132807,6.2541,189.92,189.84,15.01657766]
[1735610132992,6.2541,189.92,189.86,15.01657766]
[1735610138108,7.1382,189.97,189.87,38.79346166]
[1735610138312,7.1382,189.97,189.88,15.01657766]
[1735610139594,7.1382,189.97,189.87,15.01657766]
[1735610140311,7.1382,189.97,189.87,9.61418192]
[1735610146419,7.1382,189.97,189.86,33.39106592]
[1735610150723,7.1382,189.97,189.88,23.776884]
[1735610157334,6.4407,189.97,189.92,43.776884]
[1735610157503,0.6975,190.02,189.96,9.61418192]
[1735610157709,0.98670391,190.01,189.85,7.7244527]
[1735610158027,20.98670391,190.01,189.89,23.776884]
[1735610158225,20.98670391,190.01,189.88,9.61418192]
[1735610158607,0.98670391,190.01,189.88,9.61418192]
[1735610158823,0.9870908,190.0,189.88,9.61418192]
[1735610159326,20.0,190.01,189.89,9.61418192]
[1735610159509,0.98706922,190.0,189.89,9.61418192]
[1735610161339,0.98706922,190.0,189.9,9.61418192]
[1735610162434,0.98699141,190.01,189.9,9.61418192]
[1735610162638,0.98699141,190.01,189.89,9.61418192]
[1735610163233,0.98699141,190.01,189.9,23.776884]
[1735610165635,0.98699141,190.01,189.91,9.61418192]
[1735610165838,0.98692048,190.02,189.93,9.61418192]
[1735610166038,0.98692048,190.02,189.92,9.61418192]
[1735610166835,0.98690814,190.03,189.94,9.61418192]
[1735610167016,20.0,190.04,189.95,9.61418192]
[1735610167442,0.98676296,190.06,189.91,23.776884]
[1735610167443,0.98676296,190.06,189.96,9.61418192]
[1735610168041,20.0,190.04,189.96,9.61418192]
[1735610168427,0.98676296,190.06,189.97,9.61418192]
[1735610168625,8.05769254,190.07,190.0,9.61418192]
[1735610168829,0.98656227,190.08,189.99,9.61418192]
[1735610169126,20.0,190.09,189.98,9.61418192]
[1735610169326,0.98655613,190.08,189.98,9.61418192]
[1735610169553,20.98655863,190.09,189.99,33.39106592]
[1735610169746,20.98655863,190.09,189.99,23.776884]
[1735610170261,0.98655863,190.09,189.99,23.776884]
[1735610170550,0.98652613,190.1,189.99,23.776884]
[1735610171556,2.6303,190.09,189.94,13.1613]
[1735610171857,0.98675159,190.08,189.94,22.77548192]
[1735610172027,0.98675159,190.08,189.95,23.776884]
[1735610172348,0.98675159,190.08,189.95,33.39106592]
[1735610173642,0.98675159,190.08,189.95,23.776884]
[1735610173867,2.6306,190.07,189.93,9.61418192]
[1735610174058,0.98683718,190.06,189.91,13.164]
[1735610174354,0.98683718,190.06,189.93,9.61418192]
[1735610174571,0.98683718,190.06,189.94,9.61418192]
[1735610175857,0.98683718,190.06,189.93,9.61418192]
[1735610176064,0.98683718,190.06,189.92,9.61418192]
[1735610178641,2.6308,190.05,189.89,23.776884]
[1735610178845,0.986957,190.04,189.92,23.776884]
[1735610179046,0.986957,190.04,189.92,33.39106592]
[1735610179637,0.986957,190.04,189.81,162.2408]
[1735610179851,0.986957,190.04,189.87,9.61418192]
[1735610180247,0.986957,190.04,189.9,9.61418192]
[1735610180441,0.986957,190.04,189.84,13.1683]
[1735610180442,0.986957,190.04,189.92,9.61418192]
[1735610180757,20.986957,190.04,189.91,9.61418192]
[1735610180963,20.986957,190.04,189.92,9.61418192]
[1735610181564,20.0,190.0,189.84,13.1688]
[1735610181743,0.98726007,189.99,189.84,13.1688]
[1735610181942,23.776884,189.98,189.81,13.1709]
[1735610182262,20.0,189.95,189.84,9.61418192]
[1735610182444,0.98736858,189.94,189.84,9.61418192]
[1735610182649,20.0,189.95,189.85,33.39106592]
[1735610182849,0.9872432,189.94,189.85,33.39106592]
[1735610183057,20.98725708,189.98,189.85,33.39106592]
[1735610183258,20.98725708,189.98,189.86,9.61418192]
[1735610184061,0.98725708,189.98,189.86,9.61418192]
[1735610184274,0.98725708,189.98,189.85,23.776884]
[1735610184443,20.0,189.96,189.84,9.61418192]
[1735610184639,7.29342034,189.95,189.83,9.61418192]
[1735610184871,0.6975,189.94,189.83,9.61418192]
[1735610185075,0.98739337,189.93,189.83,9.61418192]
[1735610185368,0.98739337,189.93,189.84,9.61418192]
[1735610187270,0.98739337,189.93,189.82,23.776884]
[1735610187473,0.98739337,189.93,189.82,33.39106592]
[1735610187654,0.98739337,189.93,189.79,1.5989]
[1735610187655,6.306,189.92,189.81,9.61418192]
[1735610187966,0.98754426,189.91,189.77,13.1732]
[1735610188176,0.98754426,189.91,189.78,9.61418192]
[1735610188359,0.6975,189.9,189.78,9.61418192]
[1735610188545,20.98769958,189.89,189.78,23.776884]
[1735610188749,6.306,189.88,189.78,23.776884]
[1735610188951,0.98770956,189.87,189.78,23.776884]
[1735610190076,0.98770956,189.87,189.78,9.61418192]
[1735610190674,0.98770956,189.87,189.78,23.776884]
[1735610192180,0.98770956,189.87,189.8,9.61418192]
[1735610192479,6.306,189.88,189.8,9.61418192]
[1735610194083,6.306,189.88,189.76,23.776884]
[1735610194278,6.306,189.88,189.79,9.61418192]
[1735610194878,6.306,189.88,189.84,9.61418192]
[1735610195083,6.306,189.88,189.85,9.61418192]
[1735610195374,6.306,189.88,189.84,9.61418192]
[1735610196982,6.306,189.88,189.83,9.61418192]
[1735610200093,6.306,189.88,189.82,9.61418192]
[1735610200381,6.306,189.88,189.8,9.61418192]
[1735610200689,0.98754593,189.87,189.77,13.1737]
[1735610200865,0.98754593,189.87,189.77,22.78788192]
[1735610201169,0.98754593,189.87,189.76,9.61418192]
[1735610201773,0.98754593,189.87,189.77,9.61418192]
[1735610203986,0.98754593,189.87,189.79,23.776884]
[1735610204189,6.306,189.88,189.8,9.61418192]
[1735610204691,6.306,189.88,189.79,23.776884]
[1735610205668,6.306,189.88,189.8,9.61418192]
[1735610205864,6.306,189.88,189.79,9.61418192]
[1735610206594,6.306,189.88,189.8,9.61418192]
[1735610207894,6.306,189.88,189.79,9.61418192]
[1735610212576,0.98760598,189.87,189.79,23.776884]
[1735610212777,6.306,189.88,189.79,33.39106592]
[1735610214704,6.306,189.88,189.79,9.61418192]
[1735610216805,0.98760878,189.87,189.77,9.61418192]
[1735610219606,0.98760878,189.87,189.78,9.61418192]
[1735610222009,0.98760878,189.87,189.79,9.61418192]
[1735610222213,0.98760878,189.87,189.78,9.61418192]
[1735610229613,0.98760878,189.87,189.79,9.61418192]
[1735610230317,0.98760878,189.87,189.78,9.61418192]
[1735610233005,0.98760878,189.87,189.77,23.776884]
[1735610233006,0.98760878,189.87,189.79,9.61418192]
[1735610234520,0.98760878,189.87,189.78,9.61418192]
[1735610234819,0.98760878,189.87,189.77,23.776884]
[1735610235014,0.98760878,189.87,189.78,9.61418192]
[1735610240128,0.98760878,189.87,189.77,33.39106592]
[1735610240832,0.98760878,189.87,189.78,9.61418192]
[1735610247821,0.98760878,189.87,189.79,9.61418192]
[1735610249242,0.98760878,189.87,189.77,33.39106592]
[1735610250439,0.98760878,189.87,189.77,9.61418192]
[1735610250812,0.98760878,189.87,189.76,9.61418192]
[1735610251521,7.1943,189.86,189.74,9.61418192]
[1735610251841,0.98790042,189.85,189.74,9.61418192]
[1735610252349,7.1943,189.72,189.69,8.24668434]
[1735610252642,0.9886058,189.71,189.68,8.24668434]
[1735610253719,0.9886058,189.71,189.59,9.61418192]
[1735610253923,3.6242058,189.71,189.58,9.61418192]
[1735610255235,20.0,189.69,189.55,1.5247]
[1735610255435,0.98878581,189.68,189.57,9.61418192]
[1735610255939,0.98878581,189.68,189.56,9.61418192]
[1735610256146,0.98878581,189.68,189.55,11.13888192]
[1735610257156,0.98878581,189.68,189.56,9.61418192]
[1735610258347,0.98878581,189.68,189.55,11.13888192]
[1735610258646,0.98878581,189.68,189.56,9.61418192]
[1735610260647,0.98878581,189.68,189.55,11.13888192]
[1735610261550,6.5421,189.67,189.55,9.61418192]
[1735610261741,0.9888831,189.66,189.56,9.61418192]
[1735610263145,0.9888831,189.66,189.55,9.61418192]
[1735610263537,0.9888831,189.66,189.54,9.61418192]
[1735610263742,0.6975,189.63,189.53,9.61418192]
[1735610263938,0.98902085,189.62,189.53,9.61418192]
[1735610270049,0.98902085,189.62,189.54,9.61418192]
[1735610270555,0.98902085,189.62,189.53,9.61418192]
[1735610271055,0.98902085,189.62,189.55,9.61418192]
[1735610271356,0.98882795,189.66,189.57,9.61418192]
[1735610271868,0.98882795,189.66,189.56,9.61418192]
[1735610279849,0.98882795,189.66,189.55,9.61418192]
[1735610281571,0.98882795,189.66,189.57,9.61418192]
[1735610281861,0.98882795,189.66,189.56,9.61418192]
[1735610283764,0.98882795,189.66,189.58,9.61418192]
[1735610283970,6.5421,189.67,189.6,9.61418192]
[1735610284442,6.5421,189.67,189.59,9.61418192]
[1735610288454,6.5421,189.67,189.58,9.61418192]
[1735610289076,6.5421,189.67,189.61,9.61418192]
[1735610290471,6.5421,189.67,189.59,23.776884]
[1735610290656,6.5421,189.67,189.59,33.39106592]
[1735610291952,6.5421,189.67,189.59,23.776884]
[1735610292271,6.5421,189.67,189.59,9.61418192]
[1735610292573,0.98867226,189.66,189.58,13.1867]
[1735610293346,0.98867226,189.66,189.56,9.61418192]
[1735610293551,0.6975,189.65,189.55,14.7292]
[1735610295170,0.6975,189.65,189.56,23.776884]
[1735610295972,0.6975,189.65,189.56,33.39106592]
[1735610296571,0.6975,189.65,189.56,23.776884]
[1735610296971,0.6975,189.65,189.55,14.7292]
[1735610297160,0.98883053,189.64,189.54,9.61418192]
[1735610297359,0.98883053,189.64,189.52,13.191]
[1735610297360,0.98883053,189.64,189.55,9.61418192]
[1735610298145,0.98883253,189.64,189.55,9.61418192]
[1735610302977,1.68632373,189.65,189.56,9.61418192]
[1735610303196,0.6975,189.65,189.6,9.61418192]
[1735610303351,0.6975,189.65,189.59,9.61418192]
[1735610303551,0.6975,189.65,189.57,9.61418192]
[1735610304562,0.6975,189.65,189.56,33.39106592]
[1735610304760,0.6975,189.65,189.56,9.61418192]
[1735610305072,0.98886172,189.64,189.54,9.61418192]
[1735610305263,20.98886172,189.64,189.54,9.61418192]
[1735610310897,26.2661,189.63,189.49,13.1931]
[1735610311071,0.98909423,189.62,189.49,13.1931]
[1735610311389,0.98909423,189.62,189.5,9.61418192]
[1735610311577,6.9636,189.61,189.5,23.776884]
[1735610311774,0.98906602,189.6,189.51,9.61418192]
[1735610312774,0.98906602,189.6,189.52,9.61418192]
[1735610314069,0.98906602,189.6,189.51,9.61418192]
[1735610324399,0.98906602,189.6,189.5,23.776884]
[1735610324585,0.98906602,189.6,189.51,9.61418192]
[1735610326677,0.98906602,189.6,189.5,33.39106592]
[1735610326889,0.98906602,189.6,189.51,9.61418192]
[1735610331799,0.98906602,189.6,189.5,33.39106592]
[1735610333894,0.98906602,189.6,189.45,1.6343]
[1735610334095,6.0946,189.59,189.46,9.61418192]
[1735610334275,0.98932407,189.58,189.46,9.61418192]
[1735610334478,0.98932407,189.58,189.47,9.61418192]
[1735610335993,0.98932407,189.58,189.48,9.61418192]
[1735610339703,0.98932407,189.58,189.46,23.776884]
[1735610339899,2.637,189.61,189.41,28.49433505]
[1735610339900,6.0946,189.56,189.42,13.1981]
[1735610340103,0.98944863,189.55,189.43,9.61418192]
[1735610340405,0.98944863,189.55,189.44,23.776884]
[1735610341901,0.98944863,189.55,189.46,9.61418192]
[1735610342108,6.0946,189.56,189.49,9.61418192]
[1735610342289,6.0946,189.56,189.51,9.61418192]
[1735610342477,6.0946,189.56,189.45,40.00942768]
[1735610342683,6.0946,189.56,189.52,9.61418192]
[1735610342909,6.0946,189.56,189.51,9.61418192]
[1735610343984,6.0946,189.63,189.55,9.61418192]
[1735610344186,6.0946,189.63,189.58,9.61418192]
[1735610345702,6.0946,189.63,189.57,9.61418192]
[1735610345918,6.0946,189.63,189.56,9.61418192]
[1735610347905,6.0946,189.63,189.57,9.61418192]
[1735610349917,6.0946,189.63,189.54,23.776884]
[1735610350213,6.0946,189.63,189.53,13.1905]
[1735610350214,6.0946,189.63,189.56,9.61418192]
[1735610350391,6.0946,189.63,189.57,9.61418192]
[1735610350791,0.6975,189.65,189.61,9.61418192]
[1735610350991,7.47316134,189.68,189.61,9.61418192]
[1735610352799,7.47316134,189.68,189.6,9.61418192]
[1735610352999,7.47316134,189.68,189.59,9.61418192]
[1735610353199,7.47316134,189.68,189.54,1.5207]
[1735610353409,7.47316134,189.68,189.57,9.61418192]
[1735610356628,7.47316134,189.68,189.58,9.61418192]
[1735610358931,7.47316134,189.68,189.59,9.61418192]
[1735610361334,7.47316134,189.68,189.6,9.61418192]
[1735610361535,7.47316134,189.68,189.59,9.61418192]
[1735610361912,7.47316134,189.68,189.58,9.61418192]
[1735610362326,7.47316134,189.68,189.59,9.61418192]
[1735610362831,7.47316134,189.68,189.6,9.61418192]
[1735610363131,7.47316134,189.68,189.61,9.61418192]
[1735610364138,6.4845,189.68,189.61,9.61418192]
[1735610364339,6.4845,189.68,189.62,9.61418192]
[1735610364935,6.4845,189.68,189.61,9.61418192]
[1735610366539,0.98856103,189.67,189.61,9.61418192]
[1735610366739,0.98856103,189.67,189.6,9.61418192]
[1735610367117,6.4845,189.68,189.61,9.61418192]
[1735610369839,6.4845,189.68,189.6,9.61418192]
[1735610370642,0.98862292,189.67,189.6,9.61418192]
[1735610373240,6.4845,189.68,189.61,9.61418192]
[1735610374123,6.4845,189.68,189.63,9.61418192]
[1735610374349,6.4845,189.68,189.62,9.61418192]
[1735610374782,7.3001,189.6,189.46,9.61418192]
[1735610374925,7.3001,189.6,189.45,8.24668434]
[1735610374926,24.76630374,189.59,189.45,8.24668434]
[1735610375430,20.0,189.56,189.45,8.24668434]
[1735610375762,0.9894955,189.55,189.43,1.6054]
[1735610375955,20.0,189.56,189.44,9.61418192]
[1735610376155,0.98945571,189.55,189.44,9.61418192]
[1735610376458,6.438,189.54,189.44,9.61418192]
[1735610376652,0.98949525,189.53,189.44,9.61418192]
[1735610377627,6.438,189.54,189.46,9.61418192]
[1735610377855,0.98938713,189.53,189.46,9.61418192]
[1735610378460,0.98938713,189.53,189.45,9.61418192]
[1735610379382,0.98938713,189.53,189.43,1.6054]
[1735610379536,0.98938713,189.53,189.43,11.21958192]
[1735610380270,0.98938713,189.53,189.44,9.61418192]
[1735610380666,0.98938713,189.53,189.43,11.21958192]
[1735610381466,0.98938713,189.53,189.42,9.61418192]
[1735610382304,0.98938713,189.53,189.39,21.5917]
[1735610382453,0.6975,189.52,189.41,9.61418192]
[1735610382634,0.98961452,189.51,189.4,20.0]
[1735610382840,20.98961452,189.51,189.4,9.61418192]
[1735610383043,20.98961452,189.51,189.39,11.20588192]
[1735610383247,20.98961452,189.51,189.37,9.61418192]
[1735610383964,6.438,189.5,189.38,23.776884]
[1735610384173,0.98977431,189.49,189.38,23.776884]
[1735610384674,0.98977431,189.49,189.36,9.61418192]
[1735610384980,0.98977431,189.49,189.37,23.776884]
[1735610386180,20.0,189.47,189.37,23.776884]
[1735610386389,0.98983901,189.46,189.37,23.776884]
[1735610386793,0.98983901,189.46,189.37,9.61418192]
[1735610388083,0.98983901,189.46,189.37,23.776884]
[1735610389271,20.0,189.47,189.37,9.61418192]
[1735610389593,0.98975646,189.49,189.4,9.61418192]
[1735610389799,6.438,189.5,189.4,9.61418192]